bitfinex-derivatives/quotes_ETHF0:USTF0_20250212
["timestamp","ask_amount","ask_price","bid_price","bid_amount"]
[1739321038807,7.33978514,2603.7,2603.1,3.2078]
[1739321039011,7.33978514,2603.7,2602.9,0.5948]
[1739321039207,3.2078,2603.4,2602.7,3.2078]
[1739321039411,0.6008,2603.3,2602.5,4.03852349]
[1739321039807,0.6008,2603.3,2602.5,3.72969085]
[1739321040515,0.6008,2603.3,2602.6,0.59916444]
[1739321040812,3.2078,2603.1,2602.6,0.59916444]
[1739321041205,4.26718852,2603.0,2602.4,3.2078]
[1739321041710,3.2078,2602.8,2602.3,0.00577367]
[1739321041912,6.37679085,2602.8,2602.3,0.00577367]
[1739321042110,3.2078,2602.5,2602.3,0.00577367]
[1739321043507,4.16359067,2602.4,2602.3,0.00577367]
[1739321043717,4.76779067,2602.4,2602.3,0.00577367]
[1739321045013,3.2078,2602.5,2602.3,0.00577367]
[1739321045614,3.2078,2602.5,2602.4,0.59927539]
[1739321045916,0.5536,2602.6,2602.4,0.59927539]
[1739321046411,3.2078,2602.8,2602.4,0.59927539]
[1739321046717,3.2078,2602.8,2602.5,3.16899085]
[1739321046911,3.2078,2602.8,2602.5,4.72707503]
[1739321048215,3.2078,2602.8,2602.6,1.55808418]
[1739321048713,3.2078,2602.8,2602.4,0.5636]
[1739321049415,3.2078,2602.8,2602.5,0.5994428]
[1739321049811,3.2078,2602.8,2602.6,0.5994428]
[1739321050621,3.2078,2602.8,2602.7,0.5994428]
[1739321052021,3.2078,2602.8,2602.3,0.00577367]
[1739321052517,0.5649,2603.2,2602.4,3.2078]
[1739321052709,0.5649,2603.2,2602.5,3.63945369]
[1739321052912,4.27760984,2603.1,2602.6,0.47046284]
[1739321053225,4.27760984,2603.1,2602.7,1.55873131]
[1739321053523,3.7727,2603.2,2602.7,1.55873131]
[1739321053714,0.5649,2603.2,2602.7,1.55873131]
[1739321053914,0.5649,2603.2,2602.8,1.55873131]
[1739321054317,0.5649,2603.2,2602.9,1.55873131]
[1739321055022,0.5649,2603.2,2603.0,1.55873131]
[1739321055522,0.5649,2603.2,2603.1,0.59951204]
[1739321056814,3.2078,2603.5,2603.1,0.59951204]
[1739321057015,3.2078,2603.5,2603.1,1.55902787]
[1739321057517,3.2078,2603.5,2603.2,0.59951204]
[1739321057919,3.2078,2603.5,2602.8,3.73589085]
[1739321058222,3.2078,2603.5,2602.9,0.47062575]
[1739321058424,3.2078,2603.5,2602.8,3.73589085]
[1739321058622,3.2078,2603.5,2603.0,1.5590933]
[1739321059024,1.798,2603.7,2603.1,5.19867199]
[1739321059224,0.5954,2603.8,2603.4,3.16899085]
[1739321059915,3.8191,2604.1,2603.5,1.5590933]
[1739321060424,4.00838562,2604.0,2603.5,1.5590933]
[1739321061019,4.00838562,2604.0,2603.4,3.16899085]
[1739321062017,4.00838562,2604.0,2603.1,0.5718]
[1739321062018,3.2078,2604.1,2603.7,3.16899085]
[1739321062319,1.795,2604.4,2604.0,3.16899085]
[1739321063022,20.129,2604.5,2604.0,3.16899085]
[1739321063216,3.7746,2604.6,2604.0,3.16899085]
[1739321066917,0.0028572,2604.2,2604.0,3.16899085]
[1739321069728,3.2078,2605.0,2604.0,3.16899085]
[1739321070023,3.2078,2605.0,2604.4,3.16899085]
[1739321072719,3.2078,2605.0,2604.3,0.5778]
[1739321072921,3.2078,2604.7,2604.1,3.16899085]
[1739321073429,4.31559415,2604.6,2604.1,3.16899085]
[1739321074231,3.2078,2604.4,2604.1,3.16899085]
[1739321075223,4.12473957,2604.3,2603.8,3.16899085]
[1739321075423,5.92913957,2604.3,2603.8,3.16899085]
[1739321076823,5.92913957,2604.3,2603.7,3.2078]
[1739321078333,3.2078,2604.1,2603.7,3.2078]
[1739321081234,0.6121,2604.3,2603.8,3.16899085]
[1739321081432,0.6121,2604.3,2603.8,3.75149085]
[1739321082138,3.2078,2604.1,2603.8,0.5825]
[1739321085442,4.14605982,2604.0,2603.6,0.00576247]
[1739321085943,4.14605982,2604.0,2603.7,0.59907104]
[1739321086641,4.14605982,2604.0,2603.6,0.00576247]
[1739321087942,4.14605982,2604.0,2603.7,0.59951228]
[1739321088731,4.14605982,2604.0,2603.8,3.16899085]
[1739321089044,3.2078,2604.1,2603.8,3.16899085]
[1739321089244,3.2078,2604.1,2603.9,0.59951228]
[1739321089638,3.2078,2604.1,2603.8,3.16899085]
[1739321089838,3.2078,2604.4,2603.8,3.16899085]
[1739321090039,3.2078,2604.7,2604.1,3.16899085]
[1739321091343,3.2078,2605.0,2604.4,3.16899085]
[1739321091540,3.2078,2605.0,2604.3,3.2078]
[1739321091541,3.2078,2605.0,2604.7,3.16899085]
[1739321094145,0.569,2605.3,2604.7,3.16899085]
[1739321094338,1.771,2605.5,2604.7,3.16899085]
[1739321094842,6.05038534,2605.5,2604.7,3.16899085]
[1739321095341,4.27938534,2605.5,2604.8,0.59862733]
[1739321095942,4.27938534,2605.5,2604.7,3.16899085]
[1739321097746,4.27938534,2605.5,2604.8,0.59740172]
[1739321098244,4.27938534,2605.5,2604.7,3.16899085]
[1739321099745,4.27938534,2605.5,2604.8,0.59725606]
[1739321100441,3.2078,2605.3,2604.8,0.59725606]
[1739321100649,3.2078,2605.3,2604.7,3.16899085]
[1739321102047,3.2078,2605.3,2604.6,4.11674156]
[1739321102246,3.2078,2605.0,2604.6,0.6066]
[1739321102648,7.64400464,2605.4,2604.6,0.6066]
[1739321102842,3.2078,2605.1,2604.6,0.6066]
[1739321103655,3.2078,2605.4,2604.6,0.6066]
[1739321103948,7.59171314,2605.4,2604.6,0.6066]
[1739321104150,7.59171314,2605.4,2604.7,3.16899085]
[1739321104950,7.59171314,2605.4,2604.8,1.55191171]
[1739321105751,7.59171314,2605.4,2604.9,0.59688912]
[1739321106248,7.59171314,2605.4,2604.7,3.16899085]
[1739321106751,7.59171314,2605.4,2604.8,1.55144991]
[1739321107556,7.59171314,2605.4,2604.9,0.5967115]
[1739321108349,7.59171314,2605.4,2604.7,3.16899085]
[1739321108852,0.5616,2605.7,2605.3,3.16899085]
[1739321109050,3.2078,2606.0,2605.6,3.16899085]
[1739321109552,0.5591,2606.3,2605.6,3.16899085]
[1739321109852,4.42552046,2606.2,2605.6,3.16899085]
[1739321110055,4.42552046,2606.2,2605.7,3.2078]
[1739321110444,4.42552046,2606.2,2605.9,3.16899085]
[1739321110652,0.5591,2606.3,2605.9,3.16899085]
[1739321110853,0.5591,2606.3,2606.0,1.1739]
[1739321111053,3.2078,2606.7,2606.2,3.16899085]
[1739321112050,3.2078,2606.8,2606.2,3.16899085]
[1739321112354,7.51243698,2606.8,2606.2,3.16899085]
[1739321113254,7.51243698,2606.8,2606.0,1.1739]
[1739321113455,3.2078,2606.4,2605.9,3.16899085]
[1739321113650,3.2078,2606.4,2605.6,3.16899085]
[1739321113651,0.5963,2606.3,2605.6,3.16899085]
[1739321113955,3.2078,2606.1,2605.6,3.16899085]
[1739321114652,1.7189,2606.3,2605.6,3.16899085]
[1739321115055,4.28754109,2606.2,2605.6,3.16899085]
[1739321115456,4.28754109,2606.2,2605.9,3.16899085]
[1739321116451,3.2078,2606.1,2605.6,3.16899085]
[1739321116652,4.28754109,2606.2,2605.6,3.16899085]
[1739321116957,1.7189,2606.3,2605.6,3.16899085]
[1739321117456,4.23301188,2606.2,2605.6,3.16899085]
[1739321119359,3.2078,2606.1,2605.6,3.16899085]
[1739321119859,4.21106872,2606.0,2605.5,0.5908]
[1739321120355,3.2078,2605.8,2605.5,0.5908]
[1739321120752,3.2078,2605.8,2605.2,0.00576247]
[1739321120958,4.82260474,2605.7,2605.2,0.00576247]
[1739321121461,4.82260474,2605.7,2605.3,0.59468874]
[1739321122160,4.82260474,2605.7,2605.4,0.59468874]
[1739321122755,4.82260474,2605.7,2605.2,0.00576247]
[1739321123258,0.5557,2605.7,2605.3,3.16899085]
[1739321123458,0.5557,2605.7,2605.3,3.764462]
[1739321123655,0.5557,2605.7,2605.3,0.59547115]
[1739321123859,6.37679085,2605.5,2605.3,0.59547115]
[1739321124060,7.14445085,2605.5,2605.3,0.59547115]
[1739321124359,7.14445085,2605.5,2605.2,0.00576247]
[1739321124360,4.37295555,2605.4,2605.2,0.00576247]
[1739321124558,4.30741291,2605.4,2605.2,0.00576247]
[1739321125166,3.2078,2605.5,2605.2,0.00576247]
[1739321125663,4.02951004,2605.4,2605.2,0.00576247]
[1739321126266,10.02951004,2605.4,2605.2,0.00576247]
[1739321126561,3.16899085,2605.2,2604.4,3.76809085]
[1739321126764,3.2078,2605.0,2604.4,3.76809085]
[1739321127163,4.0988953,2604.9,2604.5,1.54907222]
[1739321127766,0.5894,2604.8,2604.5,1.54907222]
[1739321127962,0.5894,2604.8,2604.4,3.17475332]
[1739321129767,4.0988953,2604.9,2604.4,6.38255332]
[1739321129960,3.21352514,2605.0,2604.7,3.16899085]
[1739321130655,3.21352514,2605.0,2604.5,0.5791]
[1739321130656,4.15807088,2604.9,2604.5,0.5791]
[1739321130856,4.71707088,2604.9,2604.4,0.00576247]
[1739321131863,4.71707088,2604.9,2604.4,3.17475332]
[1739321132264,3.21352514,2605.0,2604.4,3.17475332]
[1739321132456,3.21352514,2605.0,2604.5,0.5786]
[1739321132862,0.00572514,2605.0,2604.7,3.16899085]
[1739321133062,0.00572514,2605.0,2604.8,0.5951]
[1739321134869,3.2078,2605.6,2604.9,3.2078]
[1739321135075,3.2078,2605.6,2605.2,6.37679085]
[1739321135273,3.2078,2605.6,2605.3,0.5528]
[1739321136173,3.2078,2606.0,2605.3,0.5528]
[1739321136675,7.22285737,2606.0,2605.3,0.5528]
[1739321138375,7.22285737,2606.0,2605.4,1.19312904]
[1739321138772,7.22285737,2606.0,2605.5,3.16899085]
[1739321139071,7.22285737,2606.0,2605.4,0.6]
[1739321139772,3.2078,2606.0,2605.5,0.59354574]
[1739321140571,3.2078,2606.0,2605.4,0.6]
[1739321140974,20.107,2606.3,2605.9,3.16899085]
[1739321141364,20.107,2606.3,2606.0,1.1635]
[1739321142970,0.6021,2606.5,2606.0,1.1635]
[1739321143276,0.6021,2606.5,2606.1,0.59372511]
[1739321143671,0.6021,2606.5,2606.0,1.1635]
[1739321144474,0.6021,2606.5,2606.1,0.59366124]
[1739321144866,0.6021,2606.5,2606.0,1.1635]
[1739321145668,4.2621499,2606.4,2606.0,1.1635]
[1739321146869,4.2621499,2606.4,2605.9,3.16899085]
[1739321147076,3.2078,2606.3,2605.8,0.00576247]
[1739321149579,4.08624598,2606.2,2605.8,0.00576247]
[1739321149773,3.2078,2605.9,2605.8,0.00576247]
[1739321150176,7.25362448,2605.9,2605.8,0.00576247]
[1739321151772,8.42852448,2605.9,2605.8,0.00576247]
[1739321153968,7.86122448,2605.9,2605.8,0.00576247]
[1739321154173,3.2078,2605.9,2605.8,0.00576247]
[1739321154971,1.763,2606.1,2605.8,3.17475332]
[1739321155278,1.763,2606.1,2605.9,0.5576]
[1739321156870,0.6076,2606.3,2605.9,0.5576]
[1739321157076,4.9708,2606.6,2605.9,0.5576]
[1739321157282,4.9708,2606.6,2606.0,0.5937442]
[1739321157476,4.9708,2606.6,2606.1,3.16899085]
[1739321157788,4.9708,2606.6,2606.1,3.76899085]
[1739321160176,4.9708,2606.6,2606.1,0.6]
[1739321160384,4.07701188,2606.5,2605.9,0.5576]
[1739321160576,4.07701188,2606.5,2605.8,3.17475332]
[1739321160778,0.5706,2606.4,2605.8,3.17475332]
[1739321160990,0.5706,2606.4,2605.9,0.59453806]
[1739321161182,4.26923528,2606.3,2605.9,0.59453806]
[1739321161685,4.26923528,2606.3,2606.0,0.59453806]
[1739321162183,4.26923528,2606.3,2605.8,3.17475332]
[1739321162385,0.5706,2606.4,2605.9,0.46863012]
[1739321162589,0.5706,2606.4,2605.8,3.17475332]
[1739321163084,4.9708,2606.6,2606.0,0.95291909]
[1739321163485,4.9708,2606.6,2606.1,0.59579065]
[1739321163486,4.25604928,2606.5,2606.1,0.59579065]
[1739321164090,4.25604928,2606.5,2605.8,3.17475332]
[1739321164292,4.25604928,2606.5,2605.9,0.46918422]
[1739321164590,4.25604928,2606.5,2605.8,3.17475332]
[1739321165578,4.25604928,2606.5,2605.9,0.59631019]
[1739321166284,4.25604928,2606.5,2606.0,0.6071]
[1739321166487,4.25604928,2606.5,2606.1,0.6088]
[1739321167388,4.25604928,2606.5,2605.8,3.17475332]
[1739321167691,0.6008,2606.4,2605.8,3.17475332]
[1739321167904,0.6008,2606.4,2605.8,0.00576247]
[1739321168108,3.2078,2606.2,2605.8,0.00576247]
[1739321168296,4.30499085,2606.1,2605.8,0.00576247]
[1739321168607,8.57082601,2606.1,2605.8,0.00576247]
[1739321169110,5.40183516,2606.1,2605.8,0.00576247]
[1739321169802,3.2078,2606.2,2605.8,0.00576247]
[1739321170104,1.763,2606.6,2606.0,3.16899085]
[1739321170105,0.5789,2606.5,2606.0,3.16899085]
[1739321170404,4.63754284,2606.5,2606.0,3.16899085]
[1739321170607,4.63754284,2606.5,2605.9,3.2078]
[1739321170805,4.63754284,2606.5,2605.8,0.57626247]
[1739321171606,4.63754284,2606.5,2605.9,1.06621769]
[1739321171797,4.63754284,2606.5,2605.9,0.59668153]
[1739321172002,4.63754284,2606.5,2605.8,0.57626247]
[1739321172505,4.63754284,2606.5,2605.9,0.95471036]
[1739321173307,4.63754284,2606.5,2605.8,0.57626247]
[1739321173308,3.2078,2606.3,2606.0,1.5514012]
[1739321173607,0.5744,2606.2,2606.0,1.5514012]
[1739321173806,5.43281664,2606.2,2605.8,0.00576247]
[1739321174210,3.2078,2605.9,2605.8,0.00576247]
[1739321174705,3.16899085,2605.8,2604.9,3.16899085]
[1739321174906,3.16899085,2605.8,2604.8,3.8208]
[1739321174907,3.2078,2605.5,2604.8,3.8208]
[1739321175106,3.2078,2605.5,2604.9,0.47000473]
[1739321175301,4.2178036,2605.4,2604.9,1.55294288]
[1739321175513,4.2178036,2605.4,2604.9,4.72193373]
[1739321175908,4.22356607,2605.4,2605.0,0.46978208]
[1739321176213,4.22356607,2605.4,2605.0,1.55294288]
[1739321176412,5.98656607,2605.4,2605.0,1.55294288]
[1739321176609,3.2078,2605.2,2605.0,1.55294288]
[1739321176810,0.578,2605.1,2605.0,1.55294288]
[1739321177114,5.56283271,2605.1,2604.9,0.00576247]
[1739321177616,0.0655542,2605.0,2604.0,3.16899085]
[1739321177804,3.2078,2604.6,2604.0,3.16899085]
[1739321178109,11.12426644,2604.5,2603.8,4.4085]
[1739321178415,0.5621,2604.4,2604.1,0.59708021]
[1739321178614,3.2078,2604.2,2603.9,0.59708021]
[1739321178819,3.2078,2604.2,2603.9,0.60284268]
[1739321179015,4.37894181,2604.1,2603.9,0.00576247]
[1739321179412,1.763,2604.0,2603.9,0.00576247]
[1739321179813,6.14194181,2604.0,2603.9,0.00576247]
[1739321181908,15.31093266,2604.0,2602.9,0.5708]
[1739321182112,3.2078,2603.5,2602.9,0.5708]
[1739321182310,3.2078,2603.5,2602.7,0.6035]
[1739321182311,2.3428,2603.4,2602.7,0.6035]
[1739321182615,3.2078,2603.2,2602.7,0.6035]
[1739321183006,4.21555772,2603.1,2602.7,0.6035]
[1739321183209,4.21555772,2603.1,2602.7,0.60926247]
[1739321185014,4.21555772,2603.1,2602.7,0.00576247]
[1739321185219,3.2078,2602.9,2602.7,0.00576247]
[1739321185619,4.29308519,2602.8,2602.7,0.00576247]
[1739321186821,6.05708519,2602.8,2602.7,0.00576247]
[1739321189816,6.05708519,2602.8,2602.1,0.5567]
[1739321190017,3.2078,2602.6,2602.1,0.5567]
[1739321190527,4.15465602,2602.5,2602.1,0.5567]
[1739321196021,0.5891,2602.7,2602.2,3.16899085]
[1739321196212,2.3541,2602.7,2602.2,3.16899085]
[1739321196418,4.1961677,2602.6,2602.2,3.16899085]
[1739321197120,0.5891,2602.7,2602.2,3.16899085]
[1739321198221,0.5891,2602.7,2602.2,6.37679085]
[1739321201027,4.3437361,2602.6,2602.2,6.37679085]
[1739321201230,4.3437361,2602.6,2602.2,3.2078]
[1739321202322,4.9728,2602.9,2602.2,6.37679085]
[1739321202724,4.09791721,2602.8,2602.2,6.37679085]
[1739321203424,4.09791721,2602.8,2602.5,3.16899085]
[1739321203625,2.979,2603.0,2602.6,1.1498]
[1739321203830,2.979,2603.0,2602.8,3.16899085]
[1739321204028,1.765,2603.1,2602.8,3.16899085]
[1739321204322,4.06965051,2602.9,2602.6,2.69331898]
[1739321204532,7.27745051,2602.9,2602.2,6.37679085]
[1739321204716,7.27745051,2602.9,2602.7,0.59507767]
[1739321204717,0.5664,2602.8,2602.7,0.59507767]
[1739321204920,4.63605051,2602.8,2602.7,0.59507767]
[1739321205427,4.63605051,2602.8,2602.2,3.2078]
[1739321205828,4.63605051,2602.8,2602.2,6.37679085]
[1739321206218,4.63605051,2602.8,2602.3,2.01888385]
[1739321206424,4.63605051,2602.8,2602.3,1.54922165]
[1739321206924,4.63605051,2602.8,2602.4,1.54922165]
[1739321207630,4.63605051,2602.8,2602.5,2.01945158]
[1739321207829,1.764,2603.0,2602.6,1.03282799]
[1739321208121,4.26666718,2602.7,2602.2,6.37679085]
[1739321208437,7.47446718,2602.9,2602.3,0.47066749]
[1739321208438,3.2078,2602.9,2602.3,0.47066749]
[1739321208728,7.47446718,2602.6,2602.2,0.5626]
[1739321208941,3.2078,2602.6,2602.4,1.55511684]
[1739321209126,3.7837,2602.6,2602.4,1.55511684]
[1739321209425,4.11443596,2602.5,2602.4,1.55511684]
[1739321212630,4.11443596,2602.5,2602.4,2.02696349]
[1739321212830,4.11443596,2602.5,2602.4,2.02696131]
[1739321213230,4.11443596,2602.5,2602.4,1.55511684]
[1739321213431,4.11443596,2602.5,2602.4,2.02701551]
[1739321213620,4.11443596,2602.5,2602.4,1.55511684]
[1739321214324,7.32223596,2602.5,2602.4,2.02708653]
[1739321215832,9.08623596,2602.5,2602.4,2.02708653]
[1739321217328,9.08623596,2602.5,2602.4,1.55511684]
[1739321217527,9.08623596,2602.5,2602.4,2.02710402]
[1739321218329,9.08623596,2602.5,2602.4,1.55511684]
[1739321220033,9.08623596,2602.5,2602.4,2.027079]
[1739321220234,7.32223596,2602.5,2602.4,2.027079]
[1739321221034,7.32223596,2602.5,2602.4,2.02704526]
[1739321221432,3.21356247,2603.2,2602.4,11.23484526]
[1739321221635,0.00576247,2603.2,2602.7,3.2078]
[1739321221835,4.21701324,2602.9,2602.8,0.47192842]
[1739321222035,4.21701324,2603.1,2602.8,0.47192842]
[1739321222242,0.6028,2603.0,2602.9,1.55511684]
[1739321222742,7.94468559,2603.0,2602.9,1.55511684]
[1739321222942,8.01020086,2603.0,2602.9,1.55511684]
[1739321223437,8.01020086,2603.0,2602.1,0.5573]
[1739321223638,3.2078,2602.8,2602.2,0.47182782]
[1739321223837,1.764,2602.7,2602.3,0.47182782]
[1739321224037,1.764,2602.7,2602.1,0.5573]
[1739321224038,6.12607635,2602.7,2602.4,0.47182782]
[1739321224239,6.12607635,2602.7,2602.4,0.57918748]
[1739321224440,6.12607635,2602.7,2602.5,0.57918748]
[1739321224838,6.12607635,2602.7,2602.6,0.57918748]
[1739321226036,9.2950672,2602.7,2602.6,0.57918748]
[1739321226241,15.2950672,2602.7,2602.1,0.6114]
[1739321226443,3.2078,2602.5,2602.2,0.47185403]
[1739321226637,3.2078,2602.5,2602.1,0.6114]
[1739321226838,5.04339887,2602.4,2602.2,0.47184117]
[1739321227043,0.5926,2602.3,2602.1,0.6114]
[1739321227244,0.5926,2602.3,2602.2,0.47184782]
[1739321227535,4.87560338,2602.3,2602.2,0.47184782]
[1739321228331,4.28300338,2602.3,2602.2,3.16899085]
[1739321228645,3.2078,2602.8,2602.2,3.16899085]
[1739321228646,1.764,2602.5,2602.2,3.64082977]
[1739321228950,1.764,2602.5,2602.3,0.47183892]
[1739321229149,1.764,2602.5,2602.4,0.47179051]
[1739321229452,3.7701,2602.8,2602.4,0.47179051]
[1739321229742,3.7701,2602.8,2602.3,0.5921]
[1739321229743,5.5341,2602.8,2602.5,0.47179051]
[1739321229937,5.5341,2602.8,2602.3,0.5921]
[1739321230136,5.5341,2602.8,2602.4,0.47179672]
[1739321230337,5.5341,2602.8,2602.3,0.5921]
[1739321230338,5.5341,2602.8,2602.5,0.47179672]
[1739321230534,5.5341,2602.8,2602.3,0.5921]
[1739321230739,5.5341,2602.8,2602.4,0.47179441]
[1739321230945,5.5341,2602.8,2602.5,0.47179441]
[1739321231139,5.5341,2602.8,2602.3,0.5921]
[1739321231339,5.5341,2602.8,2602.4,0.47148531]
[1739321231643,5.5341,2602.8,2602.3,0.5921]
[1739321231842,5.5341,2602.8,2602.4,0.47152626]
[1739321232040,4.02109084,2602.7,2602.2,0.5611]
[1739321232239,4.02109084,2602.7,2602.1,0.6114]
[1739321232441,4.02109084,2602.7,2602.2,0.47163904]
[1739321232641,4.02109084,2602.7,2602.1,0.6114]
[1739321234141,3.2078,2602.5,2602.2,0.47201364]
[1739321234335,3.2078,2602.5,2602.1,0.6114]
[1739321234540,4.3012055,2602.4,2602.1,0.6114]
[1739321235943,4.8950055,2602.4,2602.1,0.6114]
[1739321238450,4.8950055,2602.4,2602.2,0.57514859]
[1739321238854,4.8950055,2602.4,2602.1,0.6114]
[1739321239154,4.8950055,2602.4,2602.0,0.00576247]
[1739321239155,8.06399635,2602.4,2602.0,0.00576247]
[1739321239350,5.4988055,2602.4,2602.0,0.00576247]
[1739321239846,4.8950055,2602.4,2602.1,0.57513455]
[1739321240556,4.3012055,2602.4,2602.2,0.57513455]
[1739321241051,4.3012055,2602.4,2602.3,0.57513455]
[1739321242054,3.2078,2602.5,2602.3,1.04717039]
[1739321242248,3.2078,2602.5,2602.4,0.47203584]
[1739321242555,3.2078,2602.5,2602.4,1.04697644]
[1739321243057,3.2078,2602.5,2602.4,0.57500394]
[1739321244358,7.33629239,2602.5,2602.4,0.57500394]
[1739321245044,3.2078,2602.5,2602.4,0.57500394]
[1739321245249,3.2078,2602.5,2602.4,1.04699225]
[1739321245657,5.5341,2602.8,2602.4,1.04699225]
[1739321245857,5.5341,2602.8,2602.5,0.47197188]
[1739321246055,5.5341,2602.8,2602.4,0.57500394]
[1739321246256,5.5341,2602.8,2602.5,1.0469712]
[1739321246459,5.5341,2602.8,2602.5,0.57500394]
[1739321246959,5.5341,2602.8,2602.6,0.57500394]
[1739321247459,0.00576247,2603.2,2602.5,3.16899085]
[1739321247664,1.76976247,2603.2,2602.6,4.23711376]
[1739321247854,7.36496868,2603.0,2602.3,0.5646]
[1739321248060,1.1792,2602.9,2602.7,0.57481635]
[1739321248561,1.1792,2602.9,2602.3,0.5646]
[1739321248562,4.07474358,2602.8,2602.3,0.5646]
[1739321248763,4.07474358,2602.8,2602.4,0.47191727]
[1739321248963,4.07474358,2602.8,2602.3,0.5646]
[1739321249165,4.07474358,2602.8,2602.5,0.57494825]
[1739321249365,4.07474358,2602.8,2602.6,0.57494825]
[1739321249861,7.28254358,2602.8,2602.6,0.57494825]
[1739321250161,7.28254358,2602.8,2601.9,3.7891]
[1739321250162,3.16899085,2602.7,2601.9,3.7891]
[1739321250355,6.37679085,2602.4,2601.7,0.5908]
[1739321250557,1.149,2602.3,2602.1,0.57504212]
[1739321250755,6.05106706,2602.3,2602.1,0.57504212]
[1739321250963,6.05106706,2602.3,2601.7,0.5908]
[1739321251158,3.2078,2602.1,2601.7,0.5908]
[1739321251560,7.36140764,2602.1,2601.7,0.5908]
[1739321251866,7.36140764,2602.1,2601.3,3.2078]
[1739321251867,10.53039849,2602.1,2601.3,3.2078]
[1739321252060,3.2078,2601.7,2601.3,3.2078]
[1739321252263,0.5868,2601.6,2601.3,3.2078]
[1739321252569,4.71621751,2601.6,2601.4,0.57508645]
[1739321252766,4.9718,2602.0,2601.5,0.47126508]
[1739321253068,0.00576247,2601.8,2601.6,0.47125903]
[1739321253368,0.00576247,2601.8,2601.7,3.64024988]
[1739321253666,3.2078,2602.3,2601.7,4.21533633]
[1739321253868,3.2078,2602.3,2601.8,1.04634548]
[1739321254061,3.2078,2602.3,2601.9,0.47125903]
[1739321254262,3.2078,2602.3,2602.0,1.07595903]
[1739321254461,3.2078,2602.3,2602.1,0.47125903]
[1739321254669,1.764,2602.4,2602.1,1.14338645]
[1739321254868,1.764,2602.4,2602.1,4.3123773]
[1739321255167,1.764,2602.4,2602.2,1.63836426]
[1739321255362,1.764,2602.4,2602.2,1.16718645]
[1739321256167,1.764,2602.4,2602.3,0.57508645]
[1739321256373,0.00576247,2602.5,2602.3,0.57508645]
[1739321256666,3.2078,2602.7,2602.3,0.57508645]
[1739321256667,3.2078,2603.2,2602.4,4.23226634]
[1739321256864,3.16899085,2603.9,2602.4,4.23226634]
[1739321256865,3.2078,2603.7,2603.0,6.37679085]
[1739321257165,0.5532,2603.5,2603.1,0.47117549]
[1739321257464,0.5532,2603.5,2603.1,1.18488645]
[1739321257664,9.25686257,2603.4,2603.1,0.57508645]
[1739321258365,9.25686257,2603.4,2603.0,0.00576247]
[1739321258573,9.25686257,2603.4,2603.0,3.17475332]
[1739321258870,4.9718,2603.4,2603.0,3.17475332]
[1739321259064,4.9718,2603.4,2603.1,1.0541504]
[1739321259269,4.9718,2603.4,2603.1,0.5836]
[1739321259473,0.00576247,2603.6,2603.3,3.16899085]
[1739321259766,0.00576247,2603.6,2603.4,0.47028069]
[1739321259967,0.00576247,2603.6,2603.5,3.67807264]
[1739321260169,0.00576247,2603.6,2603.5,4.25160258]
[1739321260380,0.00576247,2603.6,2603.5,3.78132994]
[1739321260668,0.00576247,2603.6,2603.5,4.25109303]
[1739321260971,0.00576247,2603.6,2603.5,3.78132994]
[1739321262770,0.00576247,2603.6,2603.5,9.78132994]
[1739321262965,3.2078,2604.1,2603.5,10.25048357]
[1739321263171,1.763,2604.3,2603.9,3.16899085]
[1739321263368,23.3368,2604.7,2604.2,3.16899085]
[1739321264170,20.129,2604.7,2604.2,3.16899085]
[1739321264473,20.13476247,2604.7,2604.5,3.16899085]
[1739321264769,0.00576247,2604.7,2604.5,3.16899085]
[1739321265665,0.00576247,2604.7,2604.5,4.04829632]
[1739321266265,0.00576247,2604.7,2604.5,4.62049632]
[1739321269478,0.00576247,2604.7,2604.5,0.5722]
[1739321269667,0.00576247,2604.7,2604.4,3.2078]
[1739321272477,0.00576247,2604.7,2604.5,4.04829632]
[1739321272975,0.00576247,2604.7,2604.6,1.1767]
[1739321277281,0.6002,2605.3,2604.6,7.1767]
[1739321277489,1.1238,2605.7,2605.0,7.25609632]
[1739321277781,1.1238,2605.7,2605.1,0.5716]
[1739321277985,1.1238,2605.7,2605.3,3.2078]
[1739321278293,0.5583,2605.7,2605.3,3.2078]
[1739321278584,0.5583,2605.7,2605.3,7.25609632]
[1739321278785,0.00576247,2605.8,2605.3,7.25609632]
[1739321280187,0.00576247,2605.8,2605.6,3.2078]
[1739321280880,0.00576247,2605.8,2605.3,4.04829632]
[1739321281283,0.56296247,2605.8,2605.2,4.11760738]
[1739321281584,0.56296247,2605.8,2605.2,3.8083]
[1739321281786,0.56296247,2605.8,2605.2,3.2078]
[1739321282182,1.17566247,2605.8,2605.2,3.2078]
[1739321282579,1.94322247,2605.8,2604.8,3.2078]
[1739321282788,3.2078,2605.5,2604.5,3.7741]
[1739321282986,1.762,2605.4,2604.8,3.2078]
[1739321283387,1.762,2605.4,2605.1,3.2078]
[1739321283889,1.762,2605.4,2605.1,3.7741]
[1739321284291,1.762,2605.4,2604.8,3.2078]
[1739321284488,3.2078,2605.1,2604.4,7.82239632]
[1739321284796,1.137,2605.0,2604.4,7.82239632]
[1739321285291,1.137,2605.0,2604.5,0.56903432]
[1739321286089,1.137,2605.0,2604.6,0.56903432]
[1739321286279,4.03281604,2604.9,2604.4,3.2078]
[1739321286784,4.9698,2604.8,2604.1,3.2078]
[1739321287189,4.03281604,2604.7,2604.1,3.2078]
[1739321287788,4.03281604,2604.7,2603.8,7.25609632]
[1739321287789,3.2078,2604.5,2603.8,7.25609632]
[1739321287985,4.03281604,2604.7,2603.8,7.25609632]
[1739321288289,4.9698,2604.8,2603.8,7.25609632]
[1739321288491,4.02338409,2604.7,2603.8,7.25609632]
[1739321289083,3.2078,2604.5,2603.7,0.03502778]
[1739321289286,7.25609632,2604.5,2603.8,1.04023301]
[1739321289481,4.61359967,2604.4,2603.8,0.57142342]
[1739321289783,3.2078,2604.2,2603.9,0.57142342]
[1739321289989,1.762,2604.1,2603.4,3.2078]
[1739321290291,0.00576247,2604.0,2603.5,0.00576247]
[1739321290482,0.00576247,2604.0,2603.6,0.57188998]
[1739321290688,4.10940746,2603.9,2603.6,0.57188998]
[1739321290995,4.10940746,2603.9,2603.5,0.00576247]
[1739321291196,0.5643,2603.8,2603.5,0.00576247]
[1739321292099,7.49232716,2603.7,2603.5,0.00576247]
[1739321292300,8.08732716,2603.7,2603.5,0.00576247]
[1739321293598,5.5648,2603.7,2603.5,0.00576247]
[1739321293799,0.00576247,2604.0,2603.5,0.00576247]
[1739321293997,0.00576247,2604.0,2603.6,0.46811985]